fUST/lending_fUST_20250325
["ID","MTS","AMOUNT","RATE_DAILY","PERIOD"]
[356652248,1742916650963,-500.0,0.00012661,2]
[356652249,1742916650972,-500.0,0.00012661,2]
[356652250,1742916650982,-500.0,0.00012661,2]
[356652251,1742916650992,-635.32,0.00012661,2]
[356652252,1742916651001,-302.0,0.00012694,2]
[356652253,1742916651011,-185.0495788,0.000127,2]
[356652254,1742916651021,-693.8510917,0.00012703,2]
[356652255,1742916651031,-719.52358209,0.00012758,2]
[356652256,1742916651040,-500.0,0.0001276,2]
[356652257,1742916651050,-5960.71,0.0001276,2]
[356652258,1742916651059,-500.0,0.0001276,2]
[356652259,1742916651069,-1165.08,0.0001276,2]
[356652260,1742916651078,-3551.46,0.0001276,2]
[356652261,1742916651088,-5273.64,0.0001276,2]
[356652262,1742916651097,-500.0,0.0001276,2]
[356652263,1742916651107,-581.48,0.0001276,2]
[356652264,1742916651116,-1589.73,0.0001276,2]
[356652265,1742916651125,-500.0,0.0001276,2]
[356652266,1742916651135,-500.0,0.0001276,2]
[356652267,1742916651145,-525.84540623,0.0001276,2]
[356652268,1742916651154,-1931.35,0.0001276,2]
[356652269,1742916651164,-500.0,0.0001276,2]
[356652270,1742916651173,-500.0,0.0001276,2]
[356652271,1742916651183,-1449.91,0.0001276,2]
[356652272,1742916651192,-968.56,0.0001276,2]
[356652273,1742916651201,-596.8,0.0001276,2]
[356652274,1742916651211,-1420.26,0.0001276,2]
[356652275,1742916651220,-500.0,0.0001276,2]
[356652276,1742916651229,-11853.26,0.0001276,2]
[356652277,1742916651239,-561.93,0.0001276,2]
[356652278,1742916651249,-500.0,0.0001276,2]
[356652279,1742916651258,-500.0,0.0001276,2]
[356652280,1742916651267,-3561.25,0.0001276,2]
[356652281,1742916651276,-3564.37,0.0001276,2]
[356652282,1742916651286,-500.0,0.0001276,2]
[356652283,1742916651295,-3198.96,0.0001276,2]
[356652284,1742916651305,-500.0,0.00012761,2]
[356652285,1742916651314,-500.0,0.00012761,2]
[356652286,1742916651323,-509.16,0.00012761,2]
[356652287,1742916651333,-500.0,0.00012761,2]
[356652288,1742916651342,-500.0,0.00012761,2]
[356652289,1742916651351,-538.51613719,0.00012761,2]
[356652290,1742916651360,-500.0,0.00012761,2]
[356652291,1742916651370,-500.0,0.00012761,2]
[356652292,1742916651379,-703.67,0.00012761,2]
[356652293,1742916651389,-500.0,0.00012761,2]
[356652294,1742916651399,-500.0,0.00012761,2]
[356652295,1742916651408,-500.0,0.00012761,2]
[356652296,1742916651418,-500.0,0.00012761,2]
[356652297,1742916651427,-500.0,0.00012761,2]
[356652298,1742916651437,-550.31876795,0.00012761,2]
[356652299,1742916651447,-500.0,0.00012761,2]
[356652300,1742916651457,-500.0,0.00012761,2]
[356652301,1742916651466,-500.0,0.00012761,2]
[356652302,1742916651476,-500.0,0.00012761,2]
[356652303,1742916651486,-500.0,0.00012761,2]
[356652304,1742916651495,-729.04,0.00012761,2]
[356652305,1742916651505,-500.0,0.00012761,2]
[356652306,1742916651515,-511.88503727,0.00012761,2]
[356652307,1742916651524,-500.0,0.00012761,2]
[356652308,1742916651534,-500.0,0.00012761,2]
[356652309,1742916651543,-219.03627816,0.00012761,2]
[356652310,1742916651553,-500.0,0.00012761,2]
[356652311,1742916651563,-500.0,0.00012761,2]
[356652312,1742916651572,-1089.64,0.00012761,2]
[356652313,1742916651582,-500.0,0.00012761,2]
[356652314,1742916651592,-553.34,0.00012761,2]
[356652315,1742916651601,-407.4,0.00012761,2]
[356652316,1742916651611,-500.0,0.00012761,2]
[356652317,1742916651619,-541.64642714,0.00012761,2]
[356652318,1742916651629,-500.0,0.00012761,2]
[356652319,1742916651639,-523.32,0.00012761,2]
[356652320,1742916651648,-264.5078135,0.00012761,2]
[356652321,1742916651658,-500.0,0.00012761,2]
[356652322,1742916651667,-500.0,0.00012761,2]
[356652323,1742916651676,-559.06857485,0.00012761,2]
[356652324,1742916651688,-500.0,0.00012761,2]
[356652325,1742916651697,-500.0,0.00012761,2]
[356652326,1742916651707,-500.0,0.00012761,2]
[356652327,1742916651716,-500.0,0.00012761,2]
[356652328,1742916651726,-500.0,0.00012761,2]
[356652329,1742916651736,-500.0,0.00012761,2]
[356652330,1742916651745,-616.82,0.00012761,2]
[356652331,1742916651756,-500.0,0.00012761,2]
[356652332,1742916651766,-584.38,0.00012761,2]
[356652333,1742916651775,-500.0,0.00012761,2]
[356652334,1742916651785,-500.0,0.00012761,2]
[356652335,1742916651794,-770.41,0.00012761,2]
[356652336,1742916651803,-681.36,0.00012761,2]
[356652337,1742916651815,-986.19,0.00012761,2]
[356652338,1742916651823,-565.79,0.00012761,2]
[356652339,1742916651832,-1494.51,0.00012761,2]
[356652340,1742916651842,-500.0,0.00012761,2]
[356652341,1742916651851,-500.0,0.00012761,2]
[356652342,1742916651861,-2969.95,0.00012761,2]
[356652343,1742916651870,-500.0,0.00012761,2]
[356652344,1742916651880,-500.0,0.00012761,2]
[356652345,1742916651891,-500.0,0.00012761,2]
[356652346,1742916651901,-622.04,0.00012761,2]
[356652347,1742916651910,-610.11,0.00012761,2]
[356652348,1742916651920,-529.81208717,0.00012761,2]
[356652349,1742916651929,-500.0,0.00012761,2]
[356652350,1742916651938,-500.0,0.00012761,2]
[356652351,1742916651948,-1204.11,0.00012761,2]
[356652352,1742916651957,-533.52755127,0.00012761,2]
[356652353,1742916651967,-644.9,0.00012761,2]
[356652354,1742916651976,-1184.07,0.00012761,2]
[356652355,1742916651986,-500.0,0.00012761,2]
[356652356,1742916651995,-573.0829383,0.00012761,2]
[356652357,1742916652004,-1640.77,0.00012761,2]
[356652358,1742916652014,-500.0,0.00012761,2]
[356652359,1742916652024,-1993.57,0.00012761,2]
[356652360,1742916652124,-506.11230763,0.00012761,2]
[356652361,1742916652134,-500.0,0.00012761,2]
[356652362,1742916652144,-1380.4,0.00012761,2]
[356652363,1742916652153,-500.0,0.00012761,2]
[356652364,1742916652163,-500.0,0.00012761,2]
[356652365,1742916652172,-500.0,0.00012761,2]
[356652366,1742916652182,-2304.96,0.00012761,2]
[356652367,1742916652191,-500.0,0.00012761,2]
[356652368,1742916652201,-500.0,0.00012761,2]
[356652369,1742916652210,-4147.34,0.00012761,2]
[356652370,1742916652220,-500.0,0.00012761,2]
[356652371,1742916652229,-500.0,0.00012761,2]
[356652372,1742916652239,-9745.36,0.00012761,2]
[356652373,1742916652248,-500.0,0.00012761,2]
[356652374,1742916652258,-864.43,0.00012761,2]
[356652375,1742916652268,-500.0,0.00012761,2]
[356652376,1742916652278,-500.0,0.00012761,2]
[356652377,1742916652287,-500.0,0.00012761,2]
[356652378,1742916652298,-500.0,0.00012761,2]
[356652379,1742916652308,-505.6648794,0.00012761,2]
[356652380,1742916652317,-500.0,0.00012761,2]
[356652381,1742916652326,-1038.06,0.00012761,2]
[356652382,1742916652336,-507.88594624,0.00012761,2]
[356652383,1742916652345,-8192.75,0.00012761,2]
[356652384,1742916652354,-638.53,0.00012761,2]
[356652385,1742916652363,-3634.79,0.00012761,2]
[356652386,1742916652373,-500.0,0.00012761,2]
[356652387,1742916652382,-262.39347154,0.00012761,2]
[356652388,1742916652392,-127625.25,0.00012761,2]
[356652389,1742916652401,-500.0,0.00012761,2]
[356652390,1742916652410,-500.0,0.00012761,2]
[356652391,1742916652419,-3779.89,0.00012761,2]
[356652392,1742916652429,-500.0,0.00012761,2]
[356652393,1742916652438,-1582.47,0.00012761,2]
[356652394,1742916652448,-500.0,0.00012762,2]
[356652395,1742916652457,-500.0,0.00012762,2]
[356652396,1742916652466,-1000.0,0.00012762,2]
[356652397,1742916652475,-500.0,0.00012762,2]
[356652398,1742916652484,-500.0,0.00012762,2]
[356652399,1742916652494,-511.56410511,0.00012762,2]
[356652400,1742916652503,-500.0,0.00012762,2]
[356652401,1742916652513,-500.0,0.00012762,2]
[356652402,1742916652522,-542.28040176,0.00012762,2]
[356652403,1742916652532,-500.0,0.00012762,2]
[356652404,1742916652542,-500.0,0.00012762,2]
[356652405,1742916652551,-500.0,0.00012762,2]
[356652406,1742916652561,-500.0,0.00012762,2]
[356652407,1742916652571,-500.0,0.00012762,2]
[356652408,1742916652581,-500.0,0.00012762,2]
[356652409,1742916652590,-500.0,0.00012762,2]
[356652410,1742916652600,-500.0,0.00012762,2]
[356652411,1742916652609,-500.0,0.00012762,2]
[356652412,1742916652619,-500.0,0.00012762,2]
[356652413,1742916652628,-500.0,0.00012762,2]
[356652414,1742916652637,-500.0,0.00012762,2]
[356652415,1742916652646,-500.0,0.00012762,2]
[356652416,1742916652656,-500.0,0.00012762,2]
[356652417,1742916652665,-500.0,0.00012762,2]
[356652418,1742916652674,-500.0,0.00012762,2]
[356652419,1742916652683,-613.27,0.00012762,2]
[356652420,1742916652693,-504.64833915,0.00012762,2]
[356652421,1742916652702,-500.0,0.00012762,2]
[356652422,1742916652711,-500.0,0.00012762,2]
[356652423,1742916652721,-500.0,0.00012762,2]
[356652424,1742916652730,-500.0,0.00012762,2]
[356652425,1742916652739,-500.0,0.00012762,2]
[356652426,1742916652749,-507.22308236,0.00012762,2]
[356652427,1742916652758,-500.0,0.00012762,2]
[356652428,1742916652767,-507.22825598,0.00012762,2]
[356652429,1742916652777,-500.0,0.00012762,2]
[356652430,1742916652786,-500.0,0.00012762,2]
[356652431,1742916652796,-500.0,0.00012762,2]
[356652432,1742916652806,-500.0,0.00012762,2]
[356652433,1742916652817,-500.0,0.00012762,2]
[356652434,1742916652826,-508.92500503,0.00012762,2]
[356652435,1742916652835,-504.4836013,0.00012762,2]
[356652436,1742916652844,-500.0,0.00012762,2]
[356652437,1742916652853,-509.13673375,0.00012762,2]
[356652438,1742916652864,-500.0,0.00012762,2]
[356652439,1742916652873,-500.0,0.00012762,2]
[356652440,1742916652882,-666.07,0.00012762,2]
[356652441,1742916652893,-500.0,0.00012762,2]
[356652442,1742916652902,-500.0,0.00012762,2]
[356652443,1742916652911,-500.0,0.00012762,2]
[356652444,1742916652920,-500.0,0.00012762,2]
[356652445,1742916652929,-500.0,0.00012762,2]
[356652446,1742916652938,-523.84594961,0.00012762,2]
[356652447,1742916652947,-500.0,0.00012762,2]
[356652448,1742916652956,-500.0,0.00012762,2]
[356652449,1742916652965,-500.0,0.00012762,2]
[356652450,1742916652974,-500.0,0.00012762,2]
[356652451,1742916652984,-595.1687551,0.00012762,2]
[356652452,1742916652994,-526.79669529,0.00012762,2]
[356652453,1742916653003,-194.79384894,0.00012762,2]
[356652454,1742916653013,-500.0,0.00012762,2]
[356652455,1742916653022,-500.0,0.00012762,2]
[356652456,1742916653031,-500.0,0.00012762,2]
[356652457,1742916653040,-500.0,0.00012762,2]
[356652458,1742916653050,-641.9759504,0.00012762,2]
[356652459,1742916653059,-500.0,0.00012762,2]
[356652460,1742916653067,-500.0,0.00012762,2]
[356652461,1742916653076,-500.0,0.00012762,2]
[356652462,1742916653086,-500.0,0.00012762,2]
[356652463,1742916653095,-500.0,0.00012762,2]
[356652464,1742916653104,-500.0,0.00012762,2]
[356652466,1742916653113,-582.75064873,0.00012762,2]
[356652467,1742916653122,-500.0,0.00012762,2]
[356652468,1742916653131,-465.85551834,0.00012762,2]
[356652469,1742916653140,-500.0,0.00012762,2]
[356652470,1742916653149,-500.0,0.00012762,2]
[356652471,1742916653158,-284.4,0.00012762,2]
[356652472,1742916653167,-500.0,0.00012762,2]
[356652473,1742916653176,-509.19617059,0.00012762,2]
[356652474,1742916653185,-500.0,0.00012762,2]
[356652475,1742916653194,-500.0,0.00012762,2]
[356652476,1742916653203,-500.0,0.00012762,2]
[356652477,1742916653212,-500.0,0.00012762,2]
[356652478,1742916653222,-500.0,0.00012762,2]
[356652479,1742916653231,-500.0,0.00012762,2]
[356652480,1742916653240,-500.0,0.00012762,2]
[356652481,1742916653249,-500.0,0.00012762,2]
[356652482,1742916653259,-500.0,0.00012762,2]
[356652483,1742916653268,-500.0,0.00012762,2]
[356652484,1742916653277,-500.0,0.00012762,2]
[356652485,1742916653287,-506.45543363,0.00012762,2]
[356652486,1742916653297,-500.0,0.00012762,2]
[356652487,1742916653306,-500.0,0.00012762,2]
[356652488,1742916653315,-500.0,0.00012762,2]
[356652489,1742916653324,-500.0,0.00012762,2]
[356652490,1742916653334,-192.8516686,0.00012762,2]
[356652491,1742916653343,-500.0,0.00012762,2]
[356652492,1742916653353,-502.68801465,0.00012762,2]
[356652493,1742916653362,-505.59469119,0.00012762,2]
[356652494,1742916653372,-500.0,0.00012762,2]
[356652495,1742916653382,-500.0,0.00012762,2]
[356652496,1742916653391,-500.0,0.00012762,2]
[356652497,1742916653401,-500.0,0.00012762,2]
[356652498,1742916653410,-500.0,0.00012762,2]
[356652499,1742916653419,-500.0,0.00012762,2]
[356652500,1742916653428,-506.0279415,0.00012762,2]
[356652501,1742916653437,-500.0,0.00012762,2]
[356652502,1742916653447,-500.0,0.00012762,2]
[356652503,1742916653456,-498.1387377,0.00012762,2]
[356652504,1742916653466,-500.0,0.00012762,2]
[356652505,1742916653475,-945.05,0.00012762,2]
[356652506,1742916653485,-195.42073246,0.00012762,2]
[356652507,1742916653495,-701.86,0.00012762,2]
[356652508,1742916653504,-500.0,0.00012762,2]
[356652509,1742916653514,-500.0,0.00012762,2]
[356652510,1742916653523,-500.0,0.00012762,2]
[356652511,1742916653533,-324.70029663,0.00012762,2]
[356652512,1742916653542,-500.0,0.00012762,2]
[356652513,1742916653551,-500.0,0.00012762,2]
[356652514,1742916653561,-500.0,0.00012762,2]
[356652515,1742916653570,-500.0,0.00012762,2]
[356652516,1742916653580,-500.0,0.00012762,2]
[356652517,1742916653590,-500.0,0.00012762,2]
[356652518,1742916653599,-500.0,0.00012762,2]
[356652519,1742916653608,-500.0,0.00012762,2]
[356652520,1742916653618,-533.86886224,0.00012762,2]
[356652521,1742916653627,-500.0,0.00012762,2]
[356652522,1742916653636,-500.0,0.00012762,2]
[356652523,1742916653646,-500.0,0.00012762,2]
[356652524,1742916653655,-500.0,0.00012762,2]
[356652525,1742916653664,-602.53,0.00012762,2]
[356652526,1742916653673,-1442.36,0.00012762,2]
[356652527,1742916653682,-500.0,0.00012762,2]
[356652528,1742916653692,-510.04096049,0.00012762,2]
[356652529,1742916653702,-500.0,0.00012762,2]
[356652530,1742916653711,-500.0,0.00012762,2]
[356652531,1742916653808,-500.0,0.00012762,2]
[356652532,1742916653822,-500.0,0.00012762,2]
[356652533,1742916653831,-500.0,0.00012762,2]
[356652534,1742916653840,-500.0,0.00012762,2]
[356652535,1742916653849,-2807.66,0.00012762,2]
[356652536,1742916653860,-500.0,0.00012762,2]
[356652537,1742916653869,-500.0,0.00012762,2]
[356652538,1742916653878,-500.0,0.00012762,2]
[356652539,1742916653887,-505.8500658,0.00012762,2]
[356652540,1742916653896,-518.3099229,0.00012762,2]
[356652541,1742916653906,-500.0,0.00012762,2]
[356652542,1742916653915,-6826.57,0.00012762,2]
[356652543,1742916653924,-1104.57,0.00012762,2]
[356652544,1742916653933,-503.92388048,0.00012762,2]
[356652545,1742916653942,-500.0,0.00012762,2]
[356652546,1742916653951,-332.18694709,0.00012762,2]
[356652547,1742916653960,-500.0,0.00012762,2]
[356652548,1742916653970,-500.0,0.00012762,2]
[356652549,1742916653979,-500.0,0.00012762,2]
[356652550,1742916653989,-549.95,0.00012762,2]
[356652551,1742916653999,-292.50101567,0.00012762,2]
[356652552,1742916654009,-500.0,0.00012762,2]
[356652553,1742916654019,-500.0,0.00012762,2]
[356652554,1742916654030,-505.36802485,0.00012762,2]
[356652555,1742916654040,-500.0,0.00012762,2]
[356652556,1742916654050,-500.0,0.00012762,2]
[356652557,1742916654059,-500.0,0.00012762,2]
[356652558,1742916654069,-500.0,0.00012762,2]
[356652559,1742916654079,-500.0,0.00012762,2]
[356652560,1742916654090,-500.0,0.00012762,2]
[356652561,1742916654100,-500.0,0.00012762,2]
[356652562,1742916654110,-500.0,0.00012762,2]
[356652563,1742916654119,-500.0,0.00012762,2]
[356652564,1742916654129,-500.0,0.00012762,2]
[356652565,1742916654139,-538.25956919,0.00012762,2]
[356652566,1742916654149,-500.0,0.00012762,2]
[356652567,1742916654160,-500.0,0.00012762,2]
[356652568,1742916654170,-500.0,0.00012762,2]
[356652569,1742916654180,-500.0,0.00012762,2]
[356652570,1742916654189,-500.0,0.00012762,2]
[356652571,1742916654199,-500.0,0.00012762,2]
[356652572,1742916654209,-500.0,0.00012762,2]
[356652573,1742916654218,-179.52418786,0.00012762,2]
[356652574,1742916654228,-500.0,0.00012762,2]
[356652575,1742916654238,-500.0,0.00012762,2]
[356652576,1742916654247,-500.0,0.00012762,2]
[356652577,1742916654260,-500.0,0.00012762,2]
[356652578,1742916654271,-500.0,0.00012762,2]
[356652579,1742916654280,-500.0,0.00012762,2]
[356652580,1742916654290,-500.0,0.00012762,2]
[356652581,1742916654299,-500.0,0.00012762,2]
[356652582,1742916654309,-465.62622914,0.00012762,2]
[356652583,1742916654319,-507.1705591,0.00012762,2]
[356652584,1742916654329,-500.0,0.00012763,2]
[356652585,1742916654339,-500.0,0.00012763,2]
[356652586,1742916654349,-500.0,0.00012763,2]
[356652587,1742916654359,-500.0,0.00012763,2]
[356652588,1742916654368,-500.0,0.00012763,2]
[356652589,1742916654378,-500.0,0.00012763,2]
[356652590,1742916654388,-510.38638282,0.00012763,2]
[356652591,1742916654399,-500.0,0.00012763,2]
[356652592,1742916654409,-529.02639806,0.00012763,2]
[356652593,1742916654418,-715.87,0.00012763,2]
[356652594,1742916654427,-500.0,0.00012763,2]
[356652595,1742916654437,-500.0,0.00012763,2]
[356652596,1742916654447,-500.0,0.00012763,2]
[356652597,1742916654456,-500.0,0.00012763,2]
[356652598,1742916654465,-500.0,0.00012763,2]
[356652599,1742916654475,-500.0,0.00012763,2]
[356652600,1742916654485,-500.0,0.00012763,2]
[356652601,1742916654494,-641.64,0.00012763,2]
[356652602,1742916654504,-500.0,0.00012763,2]
[356652603,1742916654516,-500.0,0.00012763,2]
[356652604,1742916654526,-500.0,0.00012764,2]
[356652605,1742916654535,-1511.93,0.00012764,2]
[356652606,1742916654545,-500.0,0.00012764,2]
[356652607,1742916654554,-542.83,0.00012764,2]
[356652608,1742916654564,-1585.48,0.00012764,2]
[356652609,1742916654573,-881.79,0.00012764,2]
[356652610,1742916654583,-1642.0,0.00012764,2]
[356652611,1742916654592,-537.95490829,0.00012764,2]
[356652612,1742916654602,-705.16,0.00012764,2]
[356652613,1742916654611,-1344.94,0.00012764,2]
[356652614,1742916654621,-636.98,0.00012764,2]
[356652615,1742916654631,-500.0,0.00012764,2]
[356652616,1742916654640,-500.0,0.00012764,2]
[356652617,1742916654650,-500.0,0.00012764,2]
[356652618,1742916654659,-500.0,0.00012764,2]
[356652619,1742916654668,-852.38,0.00012764,2]
[356652620,1742916654678,-1234.11,0.00012764,2]
[356652621,1742916654687,-500.0,0.00012764,2]
[356652622,1742916654696,-915.39,0.00012764,2]
[356652623,1742916654705,-500.0,0.00012764,2]
[356652624,1742916654714,-2976.71,0.00012764,2]
[356652625,1742916654723,-500.0,0.00012764,2]
[356652626,1742916654733,-500.0,0.00012764,2]
[356652627,1742916654742,-502.27953074,0.00012773,2]
[356652628,1742916654751,-248.46159246,0.00012773,2]
[356652629,1742916654762,-500.0,0.00012773,2]
[356652630,1742916654771,-500.0,0.00012773,2]
[356652631,1742916654780,-500.0,0.00012773,2]
[356652632,1742916654789,-157.28466357,0.00012773,2]
[356652633,1742916654799,-500.0,0.00012773,2]
[356652634,1742916654809,-534.44279293,0.00012773,2]
[356652635,1742916654823,-500.0,0.00012773,2]
[356652636,1742916654833,-5500.0,0.00012795,2]
[356652637,1742916654842,-746.14595463,0.00012813,2]
[356652638,1742916654852,-3894.65469509,0.00012835,2]
[356652639,1742916654862,-257.88494233,0.00012863,2]
[356652640,1742916654871,-500.0,0.00012863,2]
[356652641,1742916654881,-502.94725932,0.00012863,2]
[356652642,1742916654894,-500.0,0.00012863,2]
[356652643,1742916654904,-500.0,0.00012863,2]
[356652644,1742916654914,-500.0,0.00012863,2]
[356652645,1742916654924,-500.0,0.00012863,2]
[356652646,1742916654933,-500.0,0.00012863,2]
[356652647,1742916654943,-399.02242353,0.00012863,2]
[356652648,1742916654953,-500.0,0.00012863,2]
[356652649,1742916654962,-500.0,0.00012863,2]
[356652650,1742916654972,-886.57,0.00012863,2]
[356652651,1742916654981,-268.5346902,0.00012863,2]
[356652652,1742916654991,-500.0,0.00012863,2]
[356652653,1742916655001,-500.0,0.00012863,2]
[356652654,1742916655014,-500.0,0.00012863,2]
[356652655,1742916655024,-500.0,0.00012863,2]
[356652656,1742916655034,-500.0,0.00012863,2]
[356652657,1742916655043,-581.05,0.00012863,2]
[356652658,1742916655053,-500.0,0.00012863,2]
[356652659,1742916655062,-509.69192608,0.00012863,2]
[356652660,1742916655071,-500.0,0.00012863,2]
[356652661,1742916655081,-773.75335495,0.00012868,2]
[356652662,1742916655090,-802.38222908,0.00012923,2]
[356652663,1742916655100,-465.0821227,0.00012926,2]
[356652664,1742916655110,-500.0,0.00012935,2]
[356652665,1742916655120,-13278.19,0.00012935,2]
[356652666,1742916655130,-4176.76,0.00012935,2]
[356652667,1742916655139,-1226.03,0.00012935,2]
[356652668,1742916655149,-1295.28,0.00012935,2]
[356652669,1742916655159,-11481.68,0.00012935,2]
[356652670,1742916655168,-500.0,0.00012935,2]
[356652671,1742916655177,-500.0,0.00012935,2]
[356652672,1742916655186,-583.43,0.00012935,2]
[356652673,1742916655196,-500.0,0.00012935,2]
[356652674,1742916655205,-1512.05,0.00012935,2]
[356652675,1742916655215,-543.29,0.00012935,2]
[356652676,1742916655224,-1976.38,0.00012935,2]
[356652677,1742916655233,-500.0,0.00012935,2]
[356652678,1742916655242,-583.42489399,0.00012935,2]
[356652679,1742916655251,-500.0,0.00012935,2]
[356652680,1742916655263,-500.0,0.00012935,2]
[356652681,1742916655272,-500.0,0.00012935,2]
[356652682,1742916655281,-832.07037156,0.00012978,2]
[356652683,1742916655291,-7226.419816,0.00012998,2]
[356652684,1742916655300,-172.49819073,0.00013,2]
[356652685,1742916655310,-250.0,0.00013,2]
[356652686,1742916655319,-500.0,0.00013034,2]
[356652687,1742916655407,-5960.71,0.00013034,2]
[356652688,1742916655427,-500.0,0.00013034,2]
[356652689,1742916655437,-1165.08,0.00013034,2]
[356652690,1742916655446,-3551.46,0.00013034,2]
[356652691,1742916655455,-5273.64,0.00013034,2]
[356652692,1742916655466,-508.37,0.00013034,2]
[356652693,1742916655475,-581.48,0.00013034,2]
[356652694,1742916655484,-1589.73,0.00013034,2]
[356652695,1742916655493,-500.0,0.00013034,2]
[356652696,1742916655503,-1931.35,0.00013034,2]
[356652697,1742916655515,-500.0,0.00013034,2]
[356652698,1742916655524,-500.0,0.00013034,2]
[356652699,1742916655534,-1449.91,0.00013034,2]
[356652700,1742916655544,-968.56,0.00013034,2]
[356652701,1742916655553,-596.8,0.00013034,2]
[356652702,1742916655563,-1420.26,0.00013034,2]
[356652703,1742916655572,-500.0,0.00013034,2]
[356652704,1742916655581,-11853.26,0.00013034,2]
[356652705,1742916655592,-561.93,0.00013034,2]
[356652706,1742916655602,-500.0,0.00013034,2]
[356652707,1742916655612,-500.0,0.00013034,2]
[356652708,1742916655622,-3561.25,0.00013034,2]
[356652709,1742916655631,-3564.37,0.00013034,2]
[356652710,1742916655642,-569.15037701,0.00013034,2]
[356652711,1742916655652,-3198.96,0.00013034,2]
[356652712,1742916655661,-500.0,0.00013035,2]
[356652713,1742916655671,-500.0,0.00013035,2]
[356652714,1742916655681,-509.16,0.00013035,2]
[356652715,1742916655690,-500.0,0.00013035,2]
[356652716,1742916655699,-435.86063657,0.00013035,2]
[356652717,1742916655710,-500.0,0.00013035,2]
[356652718,1742916655719,-703.67,0.00013035,2]
[356652719,1742916655729,-500.0,0.00013035,2]
[356652720,1742916655738,-513.22129983,0.00013035,2]
[356652721,1742916655748,-320.14090491,0.00013035,2]
[356652722,1742916655758,-500.0,0.00013035,2]
[356652723,1742916655767,-500.0,0.00013035,2]
[356652724,1742916655777,-500.0,0.00013035,2]
[356652725,1742916655787,-561.45,0.00013035,2]
[356652726,1742916655797,-500.0,0.00013035,2]
[356652727,1742916655807,-500.0,0.00013035,2]
[356652728,1742916655821,-500.0,0.00013035,2]
[356652729,1742916655831,-729.04,0.00013035,2]
[356652730,1742916655841,-500.0,0.00013035,2]
[356652731,1742916655850,-500.0,0.00013035,2]
[356652732,1742916655861,-500.0,0.00013035,2]
[356652733,1742916655871,-500.0,0.00013035,2]
[356652734,1742916655881,-1089.64,0.00013035,2]
[356652735,1742916655892,-500.0,0.00013035,2]
[356652736,1742916655902,-553.34,0.00013035,2]
[356652737,1742916655912,-500.0,0.00013035,2]
[356652738,1742916655922,-395.87741295,0.00013035,2]
[356652739,1742916655931,-523.32,0.00013035,2]
[356652740,1742916655941,-202.40835846,0.00013035,2]
[356652741,1742916655951,-500.0,0.00013035,2]
[356652742,1742916655960,-187.76863484,0.00013035,2]
[356652743,1742916655970,-500.0,0.00013035,2]
[356652744,1742916655979,-500.0,0.00013035,2]
[356652745,1742916655989,-500.0,0.00013035,2]
[356652746,1742916655998,-404.45,0.00013035,2]
[356652747,1742916656008,-500.0,0.00013035,2]
[356652748,1742916656018,-151.0,0.00013035,2]